bitfinex-derivatives/quotes_SOLF0:USTF0_20241101
["timestamp","ask_amount","ask_price","bid_price","bid_amount"]
[1730490759916,3.0046,166.51,166.46,3.0053]
[1730490760215,46.22756975,166.56,166.44,18.4918691]
[1730490760416,46.22756975,166.56,166.42,4.0711]
[1730490760612,0.96917197,166.55,166.42,4.0711]
[1730490760919,3.0051,166.48,166.42,4.0711]
[1730490761618,3.0043,166.52,166.42,4.0711]
[1730490761916,46.22756975,166.56,166.42,4.0711]
[1730490762103,0.96921518,166.55,166.42,4.0711]
[1730490762509,3.0051,166.48,166.43,3.0057]
[1730490762917,3.0051,166.48,166.42,4.0711]
[1730490763313,3.0051,166.48,166.44,3.0057]
[1730490766116,3.0052,166.47,166.44,3.0057]
[1730490766825,3.0052,166.47,166.44,14.54828377]
[1730490768120,11.54258377,166.55,166.44,11.54258377]
[1730490768425,11.54258377,166.52,166.42,7.077]
[1730490768624,5.3693287,166.51,166.42,7.077]
[1730490768823,3.0055,166.46,166.42,7.077]
[1730490769335,3.0053,166.47,166.43,14.54828377]
[1730490769622,4.4,166.51,166.43,11.54258377]
[1730490770320,3.0051,166.48,166.44,3.0056]
[1730490770726,4.4,166.51,166.43,11.54258377]
[1730490770923,3.0047,166.5,166.46,14.54778377]
[1730490771223,4.4,166.55,166.46,11.54258377]
[1730490771424,0.96918016,166.54,166.46,11.54258377]
[1730490771624,3.0049,166.49,166.46,11.54258377]
[1730490772723,3.0049,166.49,166.44,14.54818377]
[1730490772923,11.54258377,166.54,166.44,11.54258377]
[1730490773115,3.0047,166.5,166.45,3.0053]
[1730490773315,11.54258377,166.54,166.44,11.54258377]
[1730490773625,3.0044,166.52,166.48,3.005]
[1730490773810,4.4,166.54,166.46,11.54258377]
[1730490774217,3.0044,166.51,166.47,3.005]
[1730490781829,8.35210039,166.55,166.45,3.0054]
[1730490782027,0.96914097,166.54,166.45,3.0054]
[1730490782427,3.0049,166.49,166.45,3.0054]
[1730490783424,3.0052,166.47,166.43,14.54838377]
[1730490783629,8.35210039,166.54,166.43,14.54838377]
[1730490783833,0.96922452,166.53,166.43,14.54838377]
[1730490784231,3.0053,166.47,166.43,14.54838377]
[1730490784432,8.35210039,166.54,166.43,11.54258377]
[1730490784636,0.96925166,166.53,166.46,11.54258377]
[1730490784833,3.0049,166.49,166.46,11.54258377]
[1730490785740,2.97305853,166.52,166.44,11.54258377]
[1730490785929,0.96923489,166.51,166.42,4.0711]
[1730490786128,0.96923489,166.5,166.42,4.0711]
[1730490786855,3.0055,166.46,166.42,7.0771]
[1730490788930,3.005,166.48,166.44,3.0056]
[1730490789135,8.35210039,166.54,166.46,11.54258377]
[1730490789338,5.87437132,166.53,166.46,11.54258377]
[1730490789537,3.0046,166.51,166.46,11.54258377]
[1730490789735,8.35210039,166.54,166.46,11.54258377]
[1730490790045,0.96926321,166.53,166.46,11.54258377]
[1730490790537,11.54258377,166.52,166.42,4.0711]
[1730490790737,3.0054,166.46,166.42,7.0771]
[1730490791539,3.0052,166.47,166.42,4.0711]
[1730490791743,4.16,166.53,166.44,11.54258377]
[1730490791936,4.16,166.53,166.46,11.54258377]
[1730490792139,3.0045,166.51,166.46,11.54258377]
[1730490792934,3.0045,166.51,166.47,3.0051]
[1730490793332,3.0045,166.51,166.46,11.54258377]
[1730490793531,3.0041,166.53,166.49,11.54258377]
[1730490793736,8.35210039,166.6,166.51,11.54258377]
[1730490793937,0.96883622,166.59,166.53,14.54648377]
[1730490794137,0.96883622,166.59,166.53,11.54258377]
[1730490794444,15.70258377,166.64,166.55,11.54258377]
[1730490794646,3.0029,166.6,166.55,14.54628377]
[1730490795341,3.0031,166.59,166.53,11.54258377]
[1730490795644,15.70258377,166.64,166.53,11.54258377]
[1730490795832,0.96862898,166.63,166.53,11.54258377]
[1730490796736,3.0033,166.58,166.53,11.54258377]
[1730490797438,11.54258377,166.62,166.52,2.7118]
[1730490797744,4.16,166.64,166.53,11.54258377]
[1730490798047,0.96868933,166.63,166.53,11.54258377]
[1730490798544,0.96868933,166.63,166.54,3.0038]
[1730490798545,3.0028,166.6,166.54,3.0038]
[1730490799946,3.003,166.59,166.54,3.0038]
[1730490800344,4.16,166.63,166.53,11.54258377]
[1730490800648,0.9686552,166.62,166.53,11.54258377]
[1730490800846,4.16,166.63,166.53,11.54258377]
[1730490801051,3.0034,166.57,166.53,11.54258377]
[1730490801634,3.0036,166.56,166.53,11.54258377]
[1730490801839,3.0036,166.56,166.52,2.7118]
[1730490802449,11.54258377,166.62,166.52,2.7118]
[1730490802748,0.96874371,166.61,166.52,2.7118]
[1730490803841,3.90545102,166.61,166.52,2.7118]
[1730490804043,3.0038,166.55,166.52,2.7118]
[1730490805946,3.0035,166.57,166.52,2.7118]
[1730490806149,11.54258377,166.62,166.52,2.7118]
[1730490806447,0.96871533,166.61,166.52,2.7118]
[1730490806744,3.0035,166.57,166.52,2.7118]
[1730490807360,3.0035,166.57,166.53,3.004]
[1730490807548,3.0035,166.57,166.52,2.7118]
[1730490807844,3.0035,166.57,166.52,5.7159]
[1730490808646,3.0035,166.57,166.53,3.0041]
[1730490809458,3.0035,166.57,166.52,2.7118]
[1730490809459,3.0035,166.56,166.52,5.716]
[1730490809659,11.54258377,166.62,166.52,2.7118]
[1730490809863,0.96874458,166.61,166.54,11.54258377]
[1730490810058,0.96874458,166.6,166.57,11.54258377]
[1730490810253,0.96874458,166.6,166.52,2.7118]
[1730490810254,4.16,166.66,166.59,11.54258377]
[1730490810456,0.96842336,166.65,166.57,11.54258377]
[1730490810748,3.0027,166.61,166.57,11.54258377]
[1730490811653,4.16,166.66,166.59,11.54258377]
[1730490811856,0.96833367,166.65,166.59,11.54258377]
[1730490812050,3.0022,166.64,166.59,11.54258377]
[1730490812245,0.96833367,166.63,166.59,14.54548377]
[1730490812450,0.96833367,166.63,166.59,11.54258377]
[1730490812648,0.96833367,166.62,166.59,11.54258377]
[1730490812848,3.0021,166.64,166.59,14.54558377]
[1730490813045,0.96833827,166.63,166.59,14.54558377]
[1730490813456,3.97073827,166.63,166.59,14.54558377]
[1730490813657,0.96833827,166.62,166.59,14.54558377]
[1730490814755,3.0024,166.63,166.59,14.54558377]
[1730490815060,0.96834574,166.62,166.59,14.54558377]
[1730490815559,3.97094574,166.62,166.57,14.54578377]
[1730490815759,4.16,166.66,166.57,14.54578377]
[1730490815956,0.96839393,166.65,166.57,14.54578377]
[1730490816153,3.0026,166.62,166.57,11.54258377]
[1730490816351,4.16,166.66,166.57,11.54258377]
[1730490816549,0.96838178,166.65,166.57,11.54258377]
[1730490816959,0.96838197,166.64,166.57,11.54258377]
[1730490817259,0.96838197,166.63,166.57,11.54258377]
[1730490817448,0.96838197,166.62,166.58,3.0031]
[1730490818251,3.0023,166.63,166.58,3.0031]
[1730490818448,4.16,166.66,166.58,3.0031]
[1730490818761,3.0025,166.62,166.58,3.0031]
[1730490821171,15.70258377,166.66,166.54,11.54258377]
[1730490821466,11.54258377,166.64,166.54,11.54258377]
[1730490821658,3.0031,166.59,166.54,14.54638377]
[1730490822268,3.0031,166.59,166.55,3.0037]
[1730490822862,3.0026,166.62,166.58,3.0031]
[1730490823059,3.0026,166.62,166.57,1.2877]
[1730490823456,3.0026,166.62,166.58,3.0031]
[1730490823658,3.0028,166.6,166.57,1.2877]
[1730490825059,15.70258377,166.66,166.57,1.2877]
[1730490825060,4.16,166.66,166.57,1.2877]
[1730490825262,0.96837297,166.65,166.59,11.54258377]
[1730490825462,0.96836205,166.64,166.59,11.54258377]
[1730490825660,4.16,166.66,166.59,11.54258377]
[1730490825860,0.9683623,166.65,166.59,11.54258377]
[1730490826365,3.0025,166.62,166.59,11.54258377]
[1730490827966,3.98,166.68,166.61,11.54258377]
[1730490828183,0.96828499,166.67,166.61,11.54258377]
[1730490828776,0.96828499,166.67,166.58,11.54258377]
[1730490829071,0.96830305,166.66,166.58,11.54258377]
[1730490829269,3.0023,166.64,166.59,3.003]
[1730490830266,3.0023,166.64,166.59,4.3085]
[1730490831062,3.0023,166.63,166.59,4.3085]
[1730490832671,3.0023,166.63,166.61,7.38345758]
[1730490836277,3.0022,166.64,166.6,7.38345758]
[1730490836479,7.38345758,166.64,166.59,1.3055]
[1730490836776,7.38345758,166.64,166.6,7.38345758]
[1730490836977,3.0024,166.63,166.6,7.38345758]
[1730490837174,7.38345758,166.66,166.6,7.38345758]
[1730490837388,0.96834235,166.65,166.6,7.38345758]
[1730490837783,3.0022,166.64,166.6,7.38345758]
[1730490837982,7.38345758,166.66,166.6,7.38345758]
[1730490838179,7.38345758,166.64,166.59,1.3055]
[1730490838482,3.0026,166.62,166.59,1.3055]
[1730490839489,3.0026,166.62,166.6,7.38345758]
[1730490839788,3.0026,166.62,166.59,8.68895758]
[1730490840493,3.002,166.65,166.61,7.38345758]
[1730490840692,0.96822247,166.64,166.63,7.38345758]
[1730490840883,0.96822116,166.64,166.63,7.38345758]
[1730490841192,2.96659185,166.69,166.63,7.38345758]
[1730490841384,2.96659185,166.69,166.64,7.38345758]
[1730490841688,7.38345758,166.71,166.64,7.38345758]
[1730490842084,3.0016,166.67,166.64,7.38345758]
[1730490842590,7.38345758,166.7,166.63,7.38345758]
[1730490842781,3.0019,166.66,166.63,7.38345758]
[1730490844703,3.96266355,166.65,166.63,7.38345758]
[1730490844897,7.38345758,166.69,166.63,7.38345758]
[1730490845109,0.96068589,166.68,166.63,7.38345758]
[1730490845400,3.0021,166.64,166.62,7.38345758]
[1730490846291,3.0019,166.65,166.62,7.38345758]
[1730490847507,3.0023,166.63,166.62,7.38345758]
[1730490847711,11.14345758,166.67,166.62,7.38345758]
[1730490848000,0.96072988,166.66,166.62,7.38345758]
[1730490848399,3.0022,166.64,166.62,7.38345758]
[1730490849001,7.38345758,166.66,166.6,8.73845758]
[1730490849205,3.0024,166.63,166.6,8.73845758]
[1730490849405,7.38345758,166.66,166.6,7.38345758]
[1730490849599,0.96079841,166.65,166.6,7.38345758]
[1730490850392,7.38345758,166.64,166.57,8.67115758]
[1730490851089,7.38345758,166.66,166.6,7.38345758]
[1730490851294,0.96084473,166.65,166.6,7.38345758]
[1730490851500,3.0021,166.64,166.6,10.38615758]
[1730490851906,11.14345758,166.67,166.62,7.38345758]
[1730490852093,3.96263266,166.66,166.62,7.38345758]
[1730490852295,3.0019,166.66,166.62,7.38345758]
[1730490852500,11.14345758,166.67,166.62,7.38345758]
[1730490852699,0.96067287,166.66,166.62,7.38345758]
[1730490852905,11.14345758,166.67,166.62,7.38345758]
[1730490853196,0.96067695,166.66,166.62,7.38345758]
[1730490853789,3.0018,166.66,166.63,7.38345758]
[1730490853995,3.76,166.67,166.63,7.38345758]
[1730490854401,3.76,166.67,166.63,10.38565758]
[1730490854402,6.7616,166.67,166.63,10.38565758]
[1730490856400,6.7616,166.67,166.63,7.38345758]
[1730490856812,3.0014,166.68,166.65,7.38345758]
[1730490858507,3.0017,166.67,166.64,7.38345758]
[1730490858707,7.38345758,166.67,166.62,7.38345758]
[1730490859519,16.21284594,166.7,166.64,7.38345758]
[1730490859811,3.0017,166.67,166.64,7.38345758]
[1730490860208,7.38345758,166.7,166.64,7.38345758]
[1730490860513,0.96059821,166.69,166.64,7.38345758]
[1730490860908,0.96055853,166.68,166.64,7.38345758]
[1730490861103,7.38345758,166.7,166.64,7.38345758]
[1730490861304,3.0014,166.68,166.64,10.38545758]
[1730490861814,7.38345758,166.7,166.64,10.38545758]
[1730490861815,7.38345758,166.7,166.64,7.38345758]
[1730490862015,0.96057989,166.69,166.64,7.38345758]
[1730490862713,3.0016,166.67,166.64,7.38345758]
[1730490862909,7.38345758,166.69,166.64,7.38345758]
[1730490863417,0.96058855,166.68,166.62,7.38345758]
[1730490863712,7.38345758,166.67,166.61,7.38345758]
[1730490863901,8.31533407,166.7,166.61,7.38345758]
[1730490864108,7.38345758,166.66,166.6,7.38345758]
[1730490864706,3.0025,166.62,166.6,7.38345758]
[1730490864911,7.38345758,166.64,166.59,8.72965758]
[1730490865109,3.0028,166.61,166.59,8.72965758]
[1730490867101,3.0028,166.6,166.57,8.67115758]
[1730490867298,3.0028,166.6,166.56,10.38695758]
[1730490868509,7.38345758,166.61,166.56,7.38345758]
[1730490868712,3.0031,166.59,166.56,7.38345758]
[1730490869017,7.38345758,166.63,166.58,7.38345758]
[1730490869407,3.0027,166.61,166.58,7.38345758]
[1730490870014,3.0028,166.6,166.57,7.38345758]
[1730490871918,3.0025,166.62,166.59,7.38345758]
[1730490872427,3.0025,166.62,166.59,8.69085758]
[1730490872617,3.76,166.66,166.61,7.38345758]
[1730490872917,0.96075095,166.65,166.61,7.38345758]
[1730490873311,20.0051232,166.67,166.61,7.38345758]
[1730490873514,0.96072789,166.66,166.61,7.38345758]
[1730490874312,3.96252789,166.66,166.63,7.38345758]
[1730490874518,3.0018,166.66,166.63,7.38345758]
[1730490874918,3.76,166.68,166.64,7.38345758]
[1730490875112,3.0012,166.69,166.64,7.38345758]
[1730490875113,0.96062915,166.67,166.64,7.38345758]
[1730490875320,11.86683034,166.69,166.64,7.38345758]
[1730490875618,0.96058873,166.68,166.64,10.38545758]
[1730490875922,8.34404631,166.68,166.63,7.38345758]
[1730490876221,0.96058873,166.67,166.63,7.38345758]
[1730490876815,3.0016,166.67,166.63,7.38345758]
[1730490880320,8.86563034,166.69,166.66,10.38505758]
[1730490880521,2.72589293,166.79,166.68,7.38345758]
[1730490880522,3.64,166.74,166.68,7.38345758]
[1730490880822,0.96042184,166.73,166.68,7.38345758]
[1730490881412,3.0007,166.72,166.68,7.38345758]
[1730490881611,0.96042184,166.71,166.68,7.38345758]
[1730490882822,0.96042184,166.71,166.67,3.0014]
[1730490883917,3.96122184,166.71,166.66,4.381]
[1730490884131,3.0008,166.71,166.66,4.381]
[1730490888928,16.15900473,166.75,166.66,1.3794]
[1730490889134,3.0006,166.73,166.68,3.0014]
[1730490889429,12.51900473,166.75,166.68,11.54032471]
[1730490889627,3.0003,166.74,166.68,11.54032471]
[1730490890121,3.0003,166.74,166.7,3.001]
[1730490890527,3.0005,166.73,166.68,11.54032471]
[1730490891425,3.65043479,166.75,166.72,11.54032471]
[1730490891633,3.65043479,166.75,166.73,1.3457]
[1730490892326,3.65043479,166.75,166.73,4.3461]
[1730490892925,1.57503479,166.75,166.73,1.3457]
[1730490893142,1.57503479,166.75,166.73,4.3461]
[1730490897531,1.57503479,166.75,166.73,1.3457]
[1730490899234,1.57503479,166.75,166.73,4.3461]
[1730490900339,1.57503479,166.75,166.68,11.54032471]
[1730490900653,1.57503479,166.75,166.72,11.54032471]
[1730490900839,4.57523479,166.75,166.72,14.54082471]
[1730490901238,1.57503479,166.75,166.72,11.54032471]
[1730490901436,1.57503479,166.75,166.74,3.0003]
[1730490901843,2.01359066,166.76,166.74,3.0003]
[1730490902948,5.01359066,166.76,166.73,3.0003]
[1730490903644,2.01359066,166.76,166.74,3.0003]
[1730490903842,2.01359066,166.76,166.74,14.54062471]
[1730490904049,2.01359066,166.76,166.74,11.54032471]
[1730490904251,1.97044241,166.78,166.74,11.54032471]
[1730490904547,2.72589293,166.79,166.77,11.54032471]
[1730490905047,2.72589293,166.79,166.78,10.37366587]
[1730490905243,2.82495278,166.81,166.78,10.37366587]
[1730490905433,2.82495278,166.81,166.78,7.37406587]
[1730490905744,2.3668824,166.82,166.78,7.37406587]
[1730490905946,3.89463772,166.83,166.81,7.37406587]
[1730490906148,3.89463772,166.83,166.82,2.9988]
[1730490906349,3.89463772,166.83,166.81,7.37406587]
[1730490907145,6.89333772,166.83,166.81,7.37406587]
[1730490908446,2.9988,166.82,166.81,7.37406587]
[1730490908750,3.89463772,166.83,166.79,11.52166573]
[1730490908950,3.89463772,166.83,166.77,14.52136573]
[1730490909249,2.9992,166.8,166.77,11.52166573]
[1730490909845,2.9994,166.79,166.77,11.52166573]
[1730490910243,5.19223772,166.83,166.75,11.52166573]
[1730490910439,2.9999,166.77,166.75,11.52166573]
[1730490910645,1.2476,166.82,166.72,11.52166573]
[1730490911045,3.0,166.76,166.72,14.52216573]
[1730490911342,15.18166573,166.81,166.72,11.52166573]
[1730490911548,15.18166573,166.81,166.7,11.52166573]
[1730490911943,3.66,166.81,166.72,11.52166573]
[1730490912144,2.9997,166.79,166.75,14.52206573]
[1730490912743,1.2476,166.82,166.75,11.52166573]
[1730490912941,3.89463772,166.83,166.79,2.9996]
[1730490913460,3.89463772,166.83,166.78,11.52166573]
[1730490913649,6.89373772,166.83,166.78,11.52166573]
[1730490914156,6.89373772,166.83,166.78,14.52146573]
[1730490917452,6.89373772,166.83,166.79,2.9997]
[1730490917653,6.89373772,166.83,166.78,11.52166573]
[1730490918149,6.89373772,166.83,166.78,14.52146573]
[1730490919047,2.9992,166.82,166.78,14.52146573]
[1730490919847,2.9992,166.82,166.79,2.9997]
[1730490920856,6.89363772,166.83,166.79,2.9997]
[1730490921160,3.89463772,166.83,166.8,2.9994]
[1730490921365,3.89463772,166.83,166.78,11.52166573]
[1730490921366,6.89373772,166.83,166.78,11.52166573]
[1730490921551,6.89373772,166.83,166.79,2.9996]
[1730490921752,3.89463772,166.83,166.74,11.52166573]
[1730490922058,3.89463772,166.83,166.76,3.0002]
[1730490922255,3.89463772,166.83,166.74,11.52166573]
[1730490922645,2.9997,166.8,166.74,11.52166573]
[1730490922851,3.89463772,166.83,166.75,3.0004]
[1730490923054,2.9998,166.79,166.75,3.0004]
[1730490923855,2.9995,166.8,166.76,3.0001]
[1730490924858,2.9992,166.82,166.78,2.9998]
[1730490925156,3.89463772,166.83,166.76,11.52166573]
[1730490925563,2.9994,166.81,166.77,2.9999]
[1730490925755,3.89463772,166.83,166.76,11.52166573]
[1730490926160,2.9992,166.82,166.78,2.9997]
[1730490926465,3.89463772,166.83,166.76,11.52166573]
[1730490926854,2.9991,166.82,166.78,2.9997]
[1730490927257,3.89463772,166.83,166.81,2.9992]
[1730490927455,3.89463772,166.83,166.78,11.52166573]
[1730490927954,3.89463772,166.83,166.81,2.9992]
[1730490928457,3.89463772,166.83,166.82,2.9991]
[1730490928650,3.89463772,166.83,166.82,10.36958008]
[1730490930265,6.07168013,166.85,166.82,7.37048008]
[1730490930464,6.07168013,166.85,166.84,10.36928008]
[1730490930670,6.07168013,166.85,166.84,14.51252309]
[1730490932971,6.07168013,166.85,166.84,11.51372309]
[1730490933165,6.07168013,166.85,166.82,2.999]
[1730490933362,6.07168013,166.85,166.81,3.66]
[1730490933676,6.07168013,166.85,166.78,15.17372309]
[1730490933677,2.9992,166.82,166.78,15.17372309]
[1730490934373,2.999,166.83,166.8,2.9994]
[1730490934568,6.07168013,166.85,166.78,11.51372309]
[1730490934762,1.3294,166.84,166.78,11.51372309]
[1730490934966,2.9991,166.83,166.8,2.9994]
[1730490935379,1.3294,166.84,166.8,2.9994]
[1730490935670,4.3283,166.84,166.81,2.9992]
[1730490936177,9.07038013,166.85,166.83,2.9989]
[1730490936469,6.07168013,166.85,166.8,11.51372309]
[1730490936868,9.07028013,166.85,166.82,2.999]
[1730490937266,6.07168013,166.85,166.8,11.51372309]
[1730490937680,6.07168013,166.85,166.82,11.51372309]
[1730490938272,6.07168013,166.85,166.84,2.9988]
[1730490938484,6.07168013,166.85,166.84,14.51252309]
[1730490941982,6.07168013,166.85,166.84,11.51372309]
[1730490942171,9.07028013,166.85,166.82,14.51272309]
[1730490942679,9.07028013,166.85,166.83,2.999]
[1730490942879,6.07168013,166.85,166.82,11.51372309]
[1730490943177,6.07168013,166.85,166.8,6.6594]
[1730490943381,6.07168013,166.85,166.8,3.66]
[1730490945069,2.9992,166.82,166.8,3.66]
[1730490945976,2.9992,166.82,166.79,14.51332309]
[1730490946175,6.07168013,166.85,166.79,11.51372309]
[1730490946675,2.9991,166.83,166.8,2.9995]
[1730490948087,6.07168013,166.85,166.8,2.9995]
[1730490948388,6.07168013,166.85,166.75,15.17372309]
[1730490948573,6.07168013,166.85,166.77,11.51372309]
[1730490948885,2.9993,166.82,166.79,2.9996]
[1730490949077,6.07168013,166.85,166.77,11.51372309]
[1730490949382,12.47332378,166.84,166.75,3.0003]
[1730490949577,12.86582309,166.84,166.75,3.0003]
[1730490949779,2.6005,166.83,166.75,3.0003]
[1730490949977,2.9999,166.78,166.75,3.0003]
[1730490950180,2.6005,166.83,166.74,15.17372309]
[1730490951089,2.6005,166.83,166.74,18.17412309]
[1730490951678,2.9999,166.78,166.74,18.17412309]
[1730490953471,2.6005,166.83,166.74,15.17372309]
[1730490953680,2.9996,166.8,166.74,15.17372309]
[1730490954079,2.6005,166.83,166.77,2.9999]
[1730490955188,2.6005,166.83,166.78,2.9998]
[1730490955891,2.9993,166.82,166.78,2.9998]
[1730490957787,2.6005,166.83,166.77,11.51372309]
[1730490957788,5.5995,166.83,166.77,11.51372309]
[1730490957987,2.6005,166.83,166.77,11.51372309]
[1730490958196,2.9992,166.82,166.78,2.9998]
[1730490960783,2.6005,166.83,166.78,2.9998]
[1730490961097,2.9993,166.81,166.78,2.9998]
[1730490961281,2.9993,166.81,166.77,11.51372309]
[1730490961282,1.2796,166.83,166.77,11.51372309]
[1730490962694,1.2796,166.83,166.8,2.9994]
[1730490962994,6.07168013,166.85,166.82,11.51372309]
[1730490963294,4.15763134,166.86,166.85,2.9986]
[1730490963493,4.15763134,166.86,166.85,6.6586]
[1730490967295,4.15763134,166.86,166.85,3.66]
[1730490969402,4.15763134,166.86,166.85,6.6586]
[1730490969994,4.15763134,166.86,166.82,11.51372309]
[1730490970196,4.15763134,166.86,166.57,6.25936807]
[1730490970197,53.4615,166.85,166.57,6.25936807]
[1730490970399,11.51372309,166.74,166.63,11.51372309]
[1730490970600,1.3815,166.73,166.63,11.51372309]
[1730490970795,3.0014,166.7,166.64,3.0023]
[1730490971900,3.0014,166.7,166.65,3.0022]
[1730490972494,3.0014,166.7,166.63,11.51372309]
[1730490972495,3.0017,166.68,166.63,3.0026]
[1730490972992,3.0015,166.69,166.63,3.0026]
[1730490973191,11.51372309,166.72,166.62,3.0027]
[1730490973396,11.51372309,166.72,166.6,15.09372309]
[1730490973702,1.3815,166.73,166.63,11.51372309]
[1730490974112,3.0011,166.72,166.66,3.0018]
[1730490975301,3.0014,166.7,166.64,3.0023]
[1730490976100,3.0014,166.7,166.65,3.0022]
[1730490980610,12.77682309,166.72,166.64,3.0023]
[1730490980809,11.51372309,166.69,166.64,3.0023]
[1730490980998,11.51372309,166.69,166.58,14.60882309]
[1730490981198,11.51372309,166.69,166.59,3.58]
[1730490981412,11.51372309,166.67,166.59,3.58]
[1730490982504,3.0021,166.66,166.62,3.0026]
[1730490983508,3.0019,166.67,166.63,3.0024]
[1730490984509,3.0022,166.65,166.62,3.0027]
[1730490984712,3.0022,166.65,166.59,3.58]
[1730490985015,11.51372309,166.67,166.59,3.58]
[1730490985214,3.0023,166.65,166.61,3.0028]
[1730490985414,11.51372309,166.67,166.61,3.0028]
[1730490985603,3.0023,166.65,166.61,3.0028]
[1730490986517,11.51372309,166.65,166.55,3.6]
[1730490987012,3.0027,166.63,166.6,3.0031]
[1730490992618,11.51372309,166.63,166.54,2.5106]
[1730490993413,3.0029,166.62,166.59,3.0031]
[1730490993615,4.8603,166.64,166.56,11.51372309]
[1730490994909,7.8627,166.64,166.62,3.0027]
[1730490995411,7.8627,166.64,166.61,3.0029]
[1730490997007,3.0022,166.65,166.56,11.51372309]
[1730490997218,3.0022,166.65,166.54,3.8113]
[1730490997219,11.51372309,166.68,166.58,11.51372309]
[1730490997420,3.0021,166.66,166.58,11.51372309]
[1730490997611,3.0021,166.66,166.58,15.07372309]
[1730490998327,3.0021,166.66,166.63,3.0024]
[1730491001029,11.51372309,166.68,166.63,3.0024]
[1730491001030,3.0019,166.67,166.63,3.0024]
[1730491001233,11.51372309,166.68,166.58,3.56]
[1730491001524,3.0022,166.66,166.58,3.56]
[1730491001725,11.51372309,166.68,166.61,3.0028]
[1730491002224,3.0022,166.65,166.58,3.56]
[1730491002622,3.0022,166.65,166.62,3.0027]
[1730491003424,11.51372309,166.68,166.58,3.56]
[1730491003719,3.002,166.67,166.58,15.07372309]
[1730491004318,3.002,166.66,166.58,15.07372309]
[1730491004521,11.51372309,166.68,166.62,3.0026]
[1730491004721,11.51372309,166.68,166.58,3.56]
[1730491004918,3.0022,166.65,166.58,3.56]
[1730491005124,3.0022,166.65,166.62,3.0026]
[1730491005320,3.0022,166.65,166.58,3.56]
[1730491008039,7.38244981,166.62,166.57,7.38244981]
[1730491008230,10.38524981,166.62,166.6,3.003]
[1730491008530,7.38244981,166.62,166.6,3.003]
[1730491011330,7.38244981,166.66,166.59,7.38244981]
[1730491011534,7.38244981,166.66,166.6,7.38244981]
[1730491012033,3.0023,166.65,166.62,3.0026]
[1730491012839,7.38244981,166.64,166.62,3.0026]
[1730491013036,3.003,166.61,166.58,3.0033]
[1730491013251,7.38244981,166.63,166.57,7.38244981]
[1730491013431,7.38244981,166.63,166.58,7.38244981]
[1730491013631,10.38514981,166.63,166.6,3.003]
[1730491014036,7.38244981,166.63,166.6,3.003]
[1730491015236,3.0028,166.62,166.6,3.003]
[1730491015445,7.38244981,166.63,166.58,7.38244981]
[1730491015643,7.38244981,166.63,166.61,3.0028]
[1730491016242,10.38494981,166.64,166.61,3.0028]
[1730491021051,7.38244981,166.66,166.62,3.0026]
[1730491021640,7.38244981,166.64,166.62,3.0026]
[1730491022539,3.56,166.67,166.57,7.38244981]
[1730491022540,7.38244981,166.63,166.57,7.38244981]
[1730491022735,10.38554981,166.6,166.55,3.56]
[1730491022939,7.38244981,166.6,166.54,8.63884981]
[1730491023147,7.38244981,166.6,166.56,3.0037]
[1730491023349,3.0034,166.59,166.56,3.0037]
[1730491023554,3.0034,166.59,166.54,8.63884981]
[1730491023742,7.38244981,166.61,166.57,3.0036]
[1730491023938,3.0032,166.6,166.55,7.38244981]
[1730491024245,7.38244981,166.63,166.56,7.38244981]
[1730491024455,7.38244981,166.64,166.58,7.38244981]
[1730491024640,3.56,166.67,166.59,7.38244981]
[1730491024844,3.0023,166.65,166.59,7.38244981]
[1730491025551,3.0023,166.65,166.62,3.0026]
[1730491025950,3.0024,166.64,166.61,3.0028]
[1730491026254,3.0024,166.64,166.59,7.38244981]
[1730491027258,3.0024,166.64,166.62,3.0027]
[1730491029457,7.38244981,166.66,166.62,3.0027]
[1730491029458,3.0023,166.65,166.62,3.0027]
[1730491031955,3.0018,166.68,166.65,3.0021]
[1730491032346,7.38244981,166.69,166.63,7.38244981]
[1730491032954,10.38444981,166.67,166.63,10.38494981]
[1730491033157,10.38444981,166.67,166.63,3.0025]
[1730491033358,7.38244981,166.65,166.6,7.38244981]
[1730491033654,3.0024,166.64,166.61,3.0028]
[1730491036155,10.38484981,166.64,166.61,3.0028]
[1730491037347,3.0024,166.64,166.6,7.38244981]
[1730491037656,7.38244981,166.7,166.63,7.38244981]
[1730491037866,7.38244981,166.7,166.64,7.38244981]